fUSD/lending_fUSD_20251026
["ID","MTS","AMOUNT","RATE_DAILY","PERIOD"]
[392453631,1761501044431,-425.38071,0.00035906,30]
[392453632,1761501044441,-214.950643,0.00035906,31]
[392453633,1761501044450,-425.38071,0.00035906,30]
[392453634,1761501044459,-214.950643,0.00035906,31]
[392453635,1761501044468,-12069.1834129,0.00035909,3]
[392453636,1761501044478,-135881.39491573,0.00035919,31]
[392453637,1761501044487,-1000.0,0.00035919,30]
[392453638,1761501044496,-158.57863664,0.00035924,2]
[392453639,1761501044506,-224.62285908,0.0003593,2]
[392453640,1761501044516,-150.41,0.0003593,2]
[392453641,1761501044525,-1000.0,0.00035934,30]
[392453642,1761501044535,-700.54419301,0.00035934,7]
[392453643,1761501044544,-151.0,0.0003594,31]
[392453644,1761501044553,-151.0,0.0003594,31]
[392453645,1761501044563,-151.0,0.0003594,31]
[392453646,1761501044572,-151.0,0.0003594,31]
[392453647,1761501044583,-249.822442,0.0003594,31]
[392453648,1761501044594,-151.0,0.0003594,31]
[392453649,1761501044603,-249.822442,0.0003594,31]
[392453650,1761501044612,-151.0,0.0003594,31]
[392453651,1761501044621,-249.822442,0.0003594,31]
[392453652,1761501044630,-249.822445,0.0003594,31]
[392453653,1761501044639,-151.0,0.0003594,31]
[392453654,1761501044648,-743.210507,0.0003594,31]
[392453655,1761501044658,-743.210507,0.0003594,31]
[392453656,1761501044667,-743.210507,0.0003594,31]
[392453657,1761501044676,-743.210507,0.0003594,31]
[392453658,1761501044685,-151.0,0.0003594,31]
[392453659,1761501044694,-425.38071,0.0003594,30]
[392453660,1761501044703,-214.950643,0.0003594,31]
[392453661,1761501044712,-425.38071,0.0003594,30]
[392453662,1761501044721,-12810.1734243,0.0003594,3]
[392453663,1761501044730,-38430.520273,0.0003594,3]
[392453664,1761501044740,-72415.1004772,0.0003594,3]
[392453665,1761501044751,-1425.0,0.00035941,2]
[392453666,1761501044761,-12069.1834129,0.00035941,3]
[392453667,1761501044771,-204.43251313,0.00035944,2]
[392453668,1761501044782,-1425.0,0.00035945,2]
[392453669,1761501044791,-12069.1834129,0.00035946,3]
[392453670,1761501044810,-743.210507,0.00035947,31]
[392453671,1761501044820,-743.210507,0.00035947,31]
[392453672,1761501044829,-743.210507,0.00035947,31]
[392453673,1761501044839,-743.210514,0.00035947,31]
[392453674,1761501044848,-151.0,0.00035947,31]
[392453675,1761501044858,-425.38071,0.00035947,30]
[392453676,1761501044867,-214.950643,0.00035947,31]
[392453677,1761501044876,-425.38071,0.00035947,30]
[392453678,1761501044885,-500.0,0.00035948,2]
[392453679,1761501044895,-1000.0,0.00035948,30]
[392453680,1761501044905,-6641.3523907,0.00035949,3]
[392453681,1761501044927,-1345.15265306,0.00035949,3]
[392453682,1761501046045,-2322.21908968,0.00035806,2]
[392453683,1761501046055,-214.950643,0.0003589,31]
[392453684,1761501046064,-425.38071,0.0003589,30]
[392453685,1761501046074,-214.950643,0.0003589,31]
[392453687,1761501046083,-214.950643,0.00035896,31]
[392453688,1761501046093,-425.38071,0.00035896,30]
[392453689,1761501046103,-269.87234179,0.00035906,30]
[392453690,1761501046130,-155.50836821,0.00035906,30]
[392453691,1761501046139,-214.950643,0.00035906,31]
[392453692,1761501046148,-47.61029892,0.00035906,30]
[392453693,1761501046204,-214.950643,0.00035896,31]
[392453694,1761501046213,-377.77041108,0.00035906,30]
[392453695,1761501046223,-214.950643,0.0003594,31]
[392453696,1761501046231,-425.38071,0.0003594,30]
[392453697,1761501046241,-214.950643,0.0003594,31]
[392453698,1761501046250,-425.38071,0.0003594,30]
[392453699,1761501046259,-214.950643,0.00035947,31]
[392453700,1761501046269,-425.38071,0.00035947,30]
[392453701,1761501046278,-214.950643,0.00035947,31]
[392453702,1761501046287,-425.380705,0.00035947,30]
[392453703,1761501046296,-447.92702569,0.00035949,3]
[392453704,1761501046307,-596.86146136,0.00035949,3]
[392453705,1761501046322,-3037.88988209,0.00035949,3]
[392453706,1761501046331,-12069.1834129,0.00035949,3]
[392453707,1761501046340,-151.0,0.0003595,31]
[392453708,1761501046349,-151.0,0.0003595,31]
[392453709,1761501046358,-151.0,0.0003595,31]
[392453710,1761501046369,-151.0,0.0003595,31]
[392453711,1761501046378,-151.0,0.0003595,31]
[392453712,1761501046387,-151.0,0.0003595,31]
[392453713,1761501046396,-181.574582,0.0003595,31]
[392453714,1761501046405,-181.574582,0.0003595,31]
[392453715,1761501046415,-181.574582,0.0003595,31]
[392453716,1761501046424,-181.574582,0.0003595,31]
[392453717,1761501046433,-151.0,0.0003595,31]
[392453718,1761501046442,-151.0,0.0003595,31]
[392453719,1761501046452,-151.0,0.0003595,31]
[392453720,1761501046462,-151.0,0.0003595,31]
[392453721,1761501046471,-161.161371,0.0003595,31]
[392453722,1761501046482,-161.161371,0.0003595,31]
[392453723,1761501046491,-161.161371,0.0003595,31]
[392453724,1761501046501,-161.161371,0.0003595,31]
[392453725,1761501046511,-151.0,0.0003595,31]
[392453726,1761501046520,-151.0,0.0003595,31]
[392453727,1761501046530,-151.0,0.0003595,31]
[392453728,1761501046539,-151.0,0.0003595,31]
[392453729,1761501046549,-151.0,0.0003595,31]
[392453730,1761501046558,-18199.30925068,0.0003595,3]
[392453731,1761501046570,-9646.21012586,0.0003595,3]
[392453734,1761501278554,439.82,0.000315,120]
[392453735,1761501341040,-250.0,0.00017171,2]
[392453736,1761501344788,-187.67,0.00017171,2]
[392453737,1761501344811,-78.57,0.00018074,2]
[392453738,1761501347924,-255.68898039,0.00018074,2]
[392453739,1761501432191,150.0,0.00031506,120]
[392453740,1761501478193,175.7849297,0.00036903,50]
[392453741,1761501506701,183.0,0.00036903,50]
[392453742,1761501607877,1500.0,0.00030374,120]
[392453743,1761501625847,150.0,0.00036903,120]
[392453744,1761501654765,-150.0,0.00018074,2]
[392453745,1761501654790,-123.76862296,0.00018074,2]
[392453746,1761501785808,477.0,0.00017,30]
[392453747,1761501846410,150000.0,0.00036904,120]
[392453748,1761501944125,-193.80587328,0.00017975,2]
[392453749,1761501944146,-99.94213529,0.00018025,2]
[392453750,1761502047122,-95.05786471,0.00018025,2]
[392453751,1761502047142,-151.0,0.00018074,2]
[392453752,1761502047163,-103.41101961,0.00018074,2]
[392453753,1761502047184,-437.67,0.00018978,2]
[392453754,1761502047205,-32.66526475,0.00019773,2]
[392453755,1761502051112,-217.33473525,0.00019773,2]
[392453756,1761502051133,-35.99213054,0.00019773,2]
[392453757,1761502053087,-159.00786946,0.00019773,2]
[392453758,1761502053107,-93.48911962,0.00019773,2]
[392453759,1761502097892,587.07369635,0.00036904,120]
[392453760,1761502129625,-258.58027683,0.00019673,2]
[392453761,1761502129646,-255.909113,0.00019673,2]
[392453762,1761502147109,-131.26143143,0.00019773,2]
[392453763,1761502147131,-195.0,0.00019773,2]
[392453764,1761502147154,-300.0,0.00019773,2]
[392453765,1761502147175,-5000.0,0.00019773,2]
[392453766,1761502147196,-151.0,0.00019773,2]
[392453767,1761502147216,-195.0,0.00019805,2]
[392453768,1761502147237,-250.0,0.00019827,2]
[392453769,1761502147259,-437.67,0.00019882,2]
[392453770,1761502147278,-300.0,0.00020008,2]
[392453771,1761502147299,-5000.0,0.00020008,2]
[392453772,1761502147319,-5000.0,0.00020008,2]
[392453773,1761502147339,-5000.0,0.00020008,2]
[392453774,1761502147364,-437.67,0.00020786,2]
[392453775,1761502147386,-437.67,0.00021689,2]
[392453776,1761502147406,-150.0,0.0002175,2]
[392453777,1761502147428,-300.0,0.0002175,2]
[392453778,1761502147450,-5000.0,0.0002175,2]
[392453779,1761502147472,-195.0,0.0002175,2]
[392453780,1761502147494,-95.75448723,0.00022593,2]
[392453781,1761502151085,-5000.0,0.0002175,2]
[392453782,1761502151107,-195.0,0.00022171,2]
[392453783,1761502151126,-151.0,0.00022593,2]
[392453784,1761502151148,-341.91551277,0.00022593,2]
[392453785,1761502151172,-195.0,0.00023434,2]
[392453786,1761502151193,-437.67,0.00023497,2]
[392453787,1761502151212,-195.0,0.00023925,2]
[392453788,1761502151234,-437.67,0.000244,2]
[392453789,1761502151255,-500.0,0.00024932,2]
[392453790,1761502151277,-437.67,0.00025304,2]
[392453791,1761502151299,-437.67,0.00026208,2]
[392453792,1761502151320,-152.89,0.00026781,2]
[392453793,1761502151342,-437.67,0.00027112,2]
[392453794,1761502151363,-166.66,0.00027362,30]
[392453795,1761502151383,-210.71,0.00027397,3]
[392453796,1761502151405,-437.67,0.00028015,2]
[392453797,1761502151424,-300.0,0.00028897,2]
[392453798,1761502151448,-1200.0,0.00028897,2]
[392453799,1761502151466,-1200.0,0.00028897,2]
[392453800,1761502151487,-478.21473315,0.00028897,2]
[392453801,1761502151506,-13961.73745275,0.00028898,2]
[392453802,1761502157077,-197.97484231,0.00028898,2]
[392453803,1761502157096,-9987.64611801,0.00028898,2]
[392453804,1761502203165,5000.0,0.00028909,120]
[392453805,1761502203273,5000.0,0.00029667,120]
[392453806,1761502203387,5000.0,0.00029667,120]
[392453807,1761502203507,5000.0,0.00029667,120]
[392453808,1761502204667,195.0,0.00028898,120]
[392453809,1761502204775,195.0,0.00029272,120]
[392453810,1761502207767,2500.0,0.00028898,120]
[392453811,1761502207856,2500.0,0.00029272,120]
[392453812,1761502207964,2500.0,0.00029272,120]
[392453813,1761502208075,2500.0,0.00029272,120]
[392453816,1761502232267,-283.17206948,0.00024254,2]
[392453817,1761502232279,-275.69629582,0.00024254,2]
[392453818,1761502232288,-558.8683653,0.00028286,2]
[392453819,1761502232299,-1200.0,0.00028897,2]
[392453820,1761502232309,-2890.38327849,0.00028898,2]
[392453821,1761502232547,-28.05522096,0.00028898,2]
[392453822,1761502232566,-6425.78792979,0.00028898,2]
[392453823,1761502232575,-437.67,0.00028919,2]
[392453824,1761502232585,-300.0,0.00029822,2]
[392453826,1761502232594,-437.67,0.00029823,2]
[392453828,1761502232603,-300.0,0.00029967,2]
[392453830,1761502232612,-437.67,0.00030727,2]
[392453832,1761502232621,-400.0,0.0003118,3]
[392453834,1761502232631,-285.308,0.00031231,28]
[392453836,1761502232641,-1000.0,0.00031231,2]
[392453839,1761502232654,-880.0,0.00031314,3]
[392453841,1761502232663,-1000.0,0.0003132,2]
[392453843,1761502232673,-300.0,0.00031337,2]
[392453845,1761502232682,-437.67,0.0003163,2]
[392453847,1761502232691,-191.68617517,0.00031698,2]
[392453849,1761502232700,-195.0,0.00031787,120]
[392453851,1761502232709,-2500.0,0.00031787,120]
[392453853,1761502232719,-5000.0,0.00031788,120]
[392453856,1761502232728,-500.0,0.00031904,50]
[392453859,1761502232738,-50.12796214,0.00031904,50]
[392453861,1761502232749,-449.87203786,0.00031904,50]
[392453863,1761502232758,-172.19397252,0.00032,120]
[392453865,1761502232767,-8950.45870442,0.00032,10]
[392453867,1761502232777,-200.0,0.00032032,2]
[392453869,1761502232786,-1507.0,0.000323,2]
[392453871,1761502232796,-558.8683653,0.00032318,2]
[392453873,1761502232804,-437.67,0.00032534,2]
[392453875,1761502232814,-150.0,0.00033268,2]
[392453877,1761502232823,-500.0,0.00033273,5]
[392453879,1761502232832,-500.0,0.00033273,2]
[392453881,1761502232841,-502.11430923,0.00033273,5]
[392453883,1761502232854,-450.04851065,0.00033273,5]
[392453885,1761502232866,-500.0,0.00033273,5]
[392453887,1761502232876,-500.0,0.00033273,2]
[392453889,1761502232885,-500.0,0.00033273,5]
[392453891,1761502232894,-500.0,0.00033273,5]
[392453893,1761502232903,-500.0,0.00033273,5]
[392453895,1761502232912,-500.0,0.00033273,5]
[392453897,1761502232921,-337.82055885,0.00033273,5]
[392453899,1761502232930,-502.00398933,0.00033273,5]
[392453901,1761502232939,-500.0,0.00033273,3]
[392453903,1761502232949,-500.0,0.00033273,5]
[392453905,1761502232959,-500.0,0.00033273,5]
[392453907,1761502232972,-500.0,0.00033273,5]
[392453908,1761502232981,-500.0,0.00033273,5]
[392453909,1761502232990,-500.0,0.00033291,2]
[392453910,1761502233000,-177.79505128,0.00033291,7]
[392453911,1761502233010,-555.77031263,0.00033291,7]
[392453912,1761502233020,-347.4257984,0.00033291,7]
[392453913,1761502233030,-500.0,0.00033291,7]
[392453914,1761502233040,-500.0,0.00033291,7]
[392453915,1761502233049,-309.0653147,0.00033291,7]
[392453916,1761502233060,-500.0,0.00033291,7]
[392453917,1761502233070,-134068.3451537,0.00033292,2]
[392453918,1761502233078,-7739.0652202,0.00033292,2]
[392453919,1761502233090,-5673.0,0.00033292,2]
[392453926,1761502238193,-50.91456518,0.00033292,2]
[392453927,1761502238283,-14245.77907071,0.00033292,2]
[392453945,1761502240581,-2130.48667716,0.00033292,2]
[392453946,1761502240634,-42979.87833706,0.00033292,2]
[392453947,1761502240643,-437.67,0.00033438,2]
[392453948,1761502240653,-502.65438516,0.000335,5]
[392453949,1761502240662,-500.0,0.000335,5]
[392453950,1761502240672,-500.0,0.000335,5]
[392453951,1761502240681,-191.77873717,0.000335,5]
[392453952,1761502240691,-150.0,0.00033768,3]
[392453953,1761502240700,-1000.0,0.00033821,5]
[392453954,1761502240710,-506.56714954,0.00033821,5]
[392453955,1761502240719,-1003.60991166,0.00033821,2]
[392453956,1761502240729,-1000.0,0.00033821,5]
[392453957,1761502240738,-500.0,0.00033821,5]
[392453959,1761502240748,-500.0,0.00033821,5]
[392453961,1761502240758,-1000.0,0.00033821,5]
[392453963,1761502240768,-1000.0,0.00033821,3]
[392453965,1761502240778,-1000.0,0.00033821,5]
[392453967,1761502240788,-500.0,0.00034048,5]
[392453968,1761502240798,-1842.0,0.00034097,2]
[392453969,1761502240807,-1013.0,0.000342,2]
[392453970,1761502240817,-437.67,0.00034341,2]
[392453971,1761502240827,-1503.19929061,0.00034368,5]
[392453972,1761502240837,-214.48318976,0.00034368,5]
[392453973,1761502240847,-1500.0,0.00034368,5]
[392453974,1761502240856,-794.38,0.00034506,120]
[392453975,1761502240866,-369.34,0.00034506,2]
[392453976,1761502240876,-2086.03033096,0.0003455,2]
[392453977,1761502240886,-166.0,0.00034632,120]
[392453978,1761502240896,-25259.077234,0.0003464,3]
[392453979,1761502240905,-9999.99,0.00034649,2]
[392453980,1761502240915,-150.99,0.00034649,2]
[392453981,1761502240924,-1489.68,0.00034649,2]
[392453982,1761502240934,-8164.3,0.00034649,2]
[392453983,1761502240943,-999.99,0.00034649,2]
[392453984,1761502240953,-9999.99,0.00034649,2]
[392453985,1761502240965,-5741.68,0.00034649,2]
[392453986,1761502240976,-8992.78,0.00034649,2]
[392453987,1761502240986,-4715.71,0.00034649,2]
[392453988,1761502240997,-19999.99,0.00034649,2]
[392453989,1761502241006,-7735.95,0.00034649,2]
[392453990,1761502241016,-12629.538617,0.0003469,3]
[392453991,1761502241026,-1294.05914714,0.00034692,4]
[392453992,1761502241036,-2086.03033091,0.000347,2]
[392453993,1761502241047,-816.0,0.00034812,2]
[392453994,1761502241056,-2086.03033091,0.0003485,2]
[392453995,1761502241066,-1000.0,0.00034916,5]
[392453996,1761502241077,-816.0,0.00034919,2]
[392453997,1761502241086,-2086.03033091,0.00035,2]
[392453998,1761502241096,-8812.1186171,0.00035043,2]
[392453999,1761502241106,-1000.0,0.00035135,2]
[392454000,1761502241116,-2086.03033091,0.0003515,2]
[392454001,1761502241126,-168.0,0.0003518,2]
[392454002,1761502241135,-150.55,0.00035205,2]
[392454003,1761502241146,-1200.82,0.00035205,2]
[392454004,1761502241157,-2086.03033091,0.000353,2]
[392454005,1761502241168,-400.0,0.000354,12]
[392454006,1761502241179,-817.0,0.00035443,7]
[392454007,1761502241187,-2086.03033091,0.0003545,2]
[392454008,1761502241196,-1425.0,0.00035472,2]
[392454009,1761502241206,-12629.538617,0.000355,3]
[392454010,1761502241216,-900.0,0.000355,12]
[392454011,1761502241224,-223.06,0.0003551,2]
[392454012,1761502241234,-156.59,0.0003551,2]
[392454013,1761502241243,-167.21,0.0003551,2]
[392454014,1761502241252,-199.9,0.0003551,2]
[392454015,1761502241261,-150.0,0.0003551,2]
[392454016,1761502241270,-150.0,0.0003551,2]
[392454017,1761502241279,-150.0,0.0003551,2]
[392454018,1761502241288,-150.0,0.0003551,2]
[392454019,1761502241298,-150.0,0.0003551,2]
[392454020,1761502241307,-150.0,0.0003551,2]
[392454021,1761502241316,-150.0,0.0003551,2]
[392454022,1761502241325,-150.0,0.0003551,2]
[392454023,1761502241335,-150.0,0.0003551,2]
[392454024,1761502241345,-150.0,0.0003551,2]
[392454025,1761502241354,-150.0,0.0003551,2]
[392454026,1761502241364,-150.0,0.0003551,2]
[392454027,1761502241374,-150.0,0.0003551,2]
[392454028,1761502241383,-150.0,0.0003551,2]
[392454029,1761502241394,-150.0,0.0003551,2]
[392454030,1761502241403,-150.0,0.0003551,2]
[392454031,1761502241413,-150.0,0.0003551,2]
[392454032,1761502241423,-150.0,0.0003551,2]
[392454033,1761502241433,-414.6,0.0003551,2]
[392454034,1761502241443,-150.0,0.0003551,2]
[392454035,1761502241458,-414.6,0.0003551,2]
[392454036,1761502241468,-150.0,0.0003551,2]
[392454037,1761502241478,-150.0,0.0003551,2]
[392454038,1761502241487,-414.6,0.0003551,2]
[392454039,1761502241499,-150.0,0.0003551,2]
[392454040,1761502241508,-414.6,0.0003551,2]
[392454041,1761502241518,-150.0,0.0003551,2]
[392454042,1761502241528,-150.0,0.0003551,2]
[392454043,1761502241538,-414.6,0.0003551,2]
[392454044,1761502241549,-150.0,0.0003551,2]
[392454045,1761502241561,-414.6,0.0003551,2]
[392454046,1761502241574,-150.0,0.0003551,2]
[392454047,1761502241584,-414.6,0.0003551,2]
[392454048,1761502241595,-150.0,0.0003551,2]
[392454049,1761502241605,-414.6,0.0003551,2]
[392454050,1761502241615,-150.0,0.0003551,2]
[392454051,1761502241626,-414.6,0.0003551,2]
[392454052,1761502241636,-150.0,0.0003551,2]
[392454053,1761502241646,-414.6,0.0003551,2]
[392454054,1761502241656,-414.6,0.0003551,2]
[392454055,1761502241670,-150.0,0.0003551,2]
[392454056,1761502241799,-150.0,0.0003551,2]
[392454057,1761502241812,-414.6,0.0003551,2]
[392454058,1761502241823,-414.6,0.0003551,2]
[392454059,1761502241834,-150.0,0.0003551,2]
[392454060,1761502241845,-150.0,0.0003551,2]
[392454061,1761502241856,-414.6,0.0003551,2]
[392454062,1761502241865,-150.0,0.0003551,2]
[392454063,1761502241875,-414.6,0.0003551,2]
[392454064,1761502241885,-414.6,0.0003551,2]
[392454065,1761502241895,-150.0,0.0003551,2]
[392454066,1761502241905,-1320.22,0.0003551,14]
[392454067,1761502241915,-500.0,0.00035543,2]
[392454068,1761502241925,-1313.0,0.00035544,2]
[392454069,1761502241935,-674.688,0.00035544,2]
[392454070,1761502241945,-1594.047,0.00035544,2]
[392454071,1761502241954,-1270.0,0.00035544,2]
[392454072,1761502241965,-820.0,0.00035544,2]
[392454073,1761502241974,-381.84814253,0.00035568,2]
[392454074,1761502241984,-797.0,0.00035577,5]
[392454075,1761502241993,-12629.538617,0.00035577,3]
[392454076,1761502242003,-20743.5880115,0.00035587,2]
[392454077,1761502242013,-1425.0,0.00035592,2]
[392454078,1761502242022,-1400.0,0.000356,12]
[392454079,1761502242031,-2086.03033091,0.000356,2]
[392454080,1761502242042,-1425.0,0.00035606,2]
[392454081,1761502242052,-12629.538617,0.00035606,3]
[392454082,1761502242062,-5888.0,0.00035607,2]
[392454083,1761502242071,-300.0,0.00035616,120]
[392454084,1761502242081,-500.0,0.00035616,30]
[392454085,1761502242091,-3330.73,0.00035616,5]
[392454086,1761502242101,-1425.0,0.00035662,2]
[392454087,1761502242110,-1425.0,0.00035671,2]
[392454088,1761502242119,-500.0,0.00035679,7]
[392454089,1761502242130,-458.80327656,0.00035679,9]
[392454090,1761502242139,-272.57875577,0.00035679,9]
[392454091,1761502242148,-544.74252821,0.00035679,9]
[392454092,1761502242157,-151.0,0.00035679,31]
[392454093,1761502242167,-151.0,0.00035679,31]
[392454094,1761502242176,-151.0,0.00035679,31]
[392454095,1761502242185,-151.0,0.00035679,31]
[392454096,1761502242195,-151.0,0.00035679,31]
[392454097,1761502242205,-151.0,0.00035679,31]
[392454098,1761502242216,-193.845688,0.00035679,31]
[392454099,1761502242226,-151.0,0.00035679,31]
[392454100,1761502242236,-151.0,0.00035679,31]
[392454101,1761502242245,-151.0,0.00035679,31]
[392454102,1761502242255,-151.0,0.00035679,31]
[392454103,1761502242265,-151.0,0.00035679,31]
[392454104,1761502242274,-151.0,0.00035679,31]
[392454105,1761502242284,-500.0,0.00035679,9]
[392454106,1761502242293,-151.0,0.00035679,31]
[392454107,1761502242304,-151.0,0.00035679,31]
[392454108,1761502242313,-14261.5568047,0.0003568,2]
[392454109,1761502242324,-1425.0,0.00035689,2]
[392454110,1761502242334,-1800.0,0.000357,13]
[392454111,1761502242343,-1000.0,0.00035707,7]
[392454112,1761502242353,-1425.0,0.00035711,2]
[392454113,1761502242363,-12629.538617,0.0003572,3]
[392454114,1761502242372,-1425.0,0.00035732,2]
[392454115,1761502242382,-2086.03033091,0.0003575,2]
[392454116,1761502242391,-500.0,0.00035754,2]
[392454117,1761502242401,-344.25206053,0.0003577,10]
[392454118,1761502242411,-12629.538617,0.0003578,3]
[392454119,1761502242420,-1320.22,0.00035784,14]
[392454120,1761502242431,-344.25206053,0.00035788,10]
[392454121,1761502242440,-9967.2233,0.0003579,2]
[392454122,1761502242451,-12629.538617,0.0003579,3]
[392454123,1761502242464,-1425.0,0.00035795,2]
[392454124,1761502242473,-33191.1904,0.000358,2]
[392454125,1761502242483,-2300.0,0.000358,13]
[392454126,1761502242492,-820.788388,0.000358,31]
[392454127,1761502242502,-820.788388,0.000358,31]
[392454128,1761502242512,-820.788388,0.000358,31]
[392454129,1761502242523,-820.788388,0.000358,31]
[392454130,1761502242533,-823.311283,0.000358,31]
[392454131,1761502242542,-823.311283,0.000358,31]
[392454132,1761502242552,-823.311283,0.000358,31]
[392454133,1761502242562,-559.051871,0.000358,31]
[392454134,1761502242571,-823.311283,0.000358,31]
[392454135,1761502242580,-559.051871,0.000358,31]
[392454136,1761502242590,-559.051871,0.000358,31]
[392454137,1761502242600,-559.051871,0.000358,31]
[392454138,1761502242610,-151.0,0.000358,31]
[392454139,1761502242619,-151.0,0.000358,31]
[392454140,1761502242628,-151.0,0.000358,31]
[392454141,1761502242637,-151.0,0.000358,31]
[392454142,1761502242646,-151.0,0.000358,31]
[392454143,1761502242655,-151.0,0.000358,31]
[392454144,1761502242663,-151.0,0.000358,30]
[392454145,1761502242673,-154.821242,0.000358,31]
[392454146,1761502242682,-151.0,0.000358,30]
[392454147,1761502242691,-151.0,0.000358,31]
[392454148,1761502242700,-151.0,0.000358,31]
[392454149,1761502242709,-151.0,0.000358,31]
[392454150,1761502242719,-151.0,0.000358,31]
[392454151,1761502242728,-245.939742,0.000358,31]
[392454152,1761502242737,-164.783519,0.000358,31]
[392454153,1761502242746,-151.0,0.000358,31]
[392454154,1761502242755,-151.0,0.000358,31]
[392454155,1761502242764,-151.0,0.000358,31]
[392454156,1761502242773,-151.0,0.000358,31]
[392454157,1761502242782,-151.0,0.000358,31]
[392454158,1761502242791,-12629.538617,0.000358,3]
[392454159,1761502242800,-344.25206053,0.00035805,10]
[392454160,1761502242810,-1516.33591812,0.0003582,2]
[392454161,1761502242819,-2993.1823,0.00035841,2]
[392454162,1761502242828,-12629.538617,0.0003586,3]
[392454163,1761502242837,-500.0,0.00035865,2]
[392454164,1761502242846,-151.0,0.00035865,31]
[392454165,1761502242855,-151.0,0.00035865,31]
[392454166,1761502242864,-151.0,0.00035865,31]
[392454167,1761502242874,-151.0,0.00035865,31]
[392454168,1761502242883,-151.0,0.00035865,31]
[392454169,1761502242892,-151.0,0.00035865,31]
[392454170,1761502242901,-151.0,0.00035865,31]
[392454171,1761502242910,-151.0,0.00035865,31]
[392454172,1761502242919,-151.0,0.00035865,31]
[392454173,1761502242929,-151.0,0.00035865,31]
[392454174,1761502242939,-151.0,0.00035865,31]
[392454175,1761502242948,-151.0,0.00035865,31]
[392454176,1761502242958,-151.0,0.00035865,31]
[392454177,1761502242967,-12629.538617,0.00035866,3]
[392454178,1761502242976,-10446.9020653,0.00035866,3]
[392454179,1761502242987,-50518.154468,0.00035869,3]
[392454180,1761502242996,-52234.5103267,0.00035869,3]
[392454182,1761502243006,-219.308697,0.0003587,31]
[392454184,1761502243015,-151.0,0.0003587,31]
[392454185,1761502243024,-151.0,0.0003587,31]
[392454186,1761502243032,-151.0,0.0003587,31]
[392454187,1761502243042,-151.0,0.0003587,31]
[392454188,1761502243050,-151.0,0.0003587,31]
[392454189,1761502243059,-214.576706,0.0003587,31]
[392454190,1761502243068,-151.0,0.0003587,31]
[392454191,1761502243077,-151.0,0.0003587,31]
[392454192,1761502243085,-151.0,0.0003587,31]
[392454193,1761502243094,-151.0,0.0003587,31]
[392454194,1761502243103,-151.0,0.0003587,31]
[392454195,1761502243113,-197.15762,0.0003587,31]
[392454196,1761502243122,-151.0,0.0003587,31]
[392454197,1761502243131,-151.0,0.0003587,31]
[392454198,1761502243140,-151.0,0.0003587,31]
[392454199,1761502243149,-151.0,0.0003587,31]
[392454200,1761502243158,-151.0,0.0003587,31]
[392454201,1761502243168,-151.0,0.0003587,31]
[392454202,1761502243177,-151.0,0.0003587,31]
[392454203,1761502243185,-151.0,0.0003587,31]
[392454204,1761502243195,-151.0,0.0003587,31]
[392454205,1761502243203,-151.0,0.0003587,31]
[392454206,1761502243212,-278.670365,0.0003587,31]
[392454208,1761502243221,-151.0,0.0003587,31]
[392454209,1761502243230,-151.0,0.0003587,31]